bitfinex/quotes_SOLUSD_20251030
["timestamp","ask_amount","ask_price","bid_price","bid_amount"]
[1761849680209,11.27437326,181.75,181.72,20.592]
[1761849680380,6.43221345,181.74,181.72,20.592]
[1761849680586,6.43221345,181.74,181.71,20.592]
[1761849680783,6.43221345,181.74,181.65,73.24]
[1761849680784,11.5444269,181.72,181.63,0.66]
[1761849681003,5.77221345,181.67,181.63,0.66]
[1761849681182,5.77221345,181.68,181.63,0.66]
[1761849681386,5.77221345,181.66,181.63,20.592]
[1761849681607,2.2730173,181.65,181.6,0.66]
[1761849681808,2.2730173,181.64,181.6,0.66]
[1761849682209,2.2730173,181.64,181.54,29.39820937]
[1761849682210,2.2730173,181.64,181.56,0.66]
[1761849682401,2.9330173,181.63,181.57,0.66]
[1761849682594,2.2730173,181.63,181.59,20.592]
[1761849683291,2.2730173,181.63,181.59,21.252]
[1761849683496,5.78975933,181.63,181.6,20.592]
[1761849683701,5.78975933,181.63,181.59,0.66]
[1761849684103,5.50549029,181.64,181.59,21.252]
[1761849684305,5.78975933,181.64,181.59,21.252]
[1761849684607,0.66,181.69,181.6,6.44975933]
[1761849684798,5.78975933,181.66,181.6,6.44975933]
[1761849684989,5.78975933,181.67,181.61,6.44975933]
[1761849685407,5.78975933,181.68,181.62,6.44975933]
[1761849685597,5.78975933,181.68,181.63,20.592]
[1761849685794,5.78975933,181.68,181.63,21.252]
[1761849686119,5.78975933,181.71,181.65,31.88685154]
[1761849686307,5.78975933,181.71,181.65,20.592]
[1761849686308,6.44975933,181.71,181.65,20.592]
[1761849686629,5.50266879,181.73,181.66,6.44975933]
[1761849686796,11.29242812,181.73,181.67,6.44975933]
[1761849687120,5.78975933,181.73,181.67,6.44975933]
[1761849687290,5.78975933,181.73,181.68,21.252]
[1761849687601,5.78975933,181.72,181.68,21.252]
[1761849687803,11.29219187,181.74,181.69,0.66]
[1761849688003,11.29219187,181.74,181.6,0.66]
[1761849688004,9.78882769,181.69,181.6,0.66]
[1761849688216,9.78882769,181.69,181.56,5.5078211]
[1761849688217,5.78975933,181.61,181.56,6.1678211]
[1761849688601,5.78975933,181.61,181.59,20.592]
[1761849688795,5.78975933,181.61,181.56,5.5078211]
[1761849688992,5.78975933,181.61,181.57,21.252]
[1761849689216,0.66,181.63,181.56,6.1678211]
[1761849689217,5.78975933,181.6,181.56,6.1678211]
[1761849689534,8.80038824,181.6,181.57,26.09949609]
[1761849689690,8.80038824,181.6,181.57,5.50749609]
[1761849690093,8.80038824,181.6,181.58,20.592]
[1761849690399,13.76308267,181.65,181.58,30.05238824]
[1761849690400,8.80038824,181.65,181.58,30.05238824]
[1761849690613,8.80038824,181.65,181.59,0.66]
[1761849690797,0.66,181.68,181.62,20.592]
[1761849690798,8.80038824,181.66,181.62,20.592]
[1761849691120,8.80038824,181.69,181.62,8.80038824]
[1761849691298,8.80038824,181.68,181.63,0.66]
[1761849691611,8.80038824,181.68,181.64,5.50539528]
[1761849691813,8.80038824,181.69,181.64,6.16539528]
[1761849692407,8.80038824,181.67,181.62,5.50576164]
[1761849692599,8.80038824,181.64,181.59,20.592]
[1761849692798,8.80038824,181.64,181.6,20.592]
[1761849693025,8.80038824,181.65,181.6,20.592]
[1761849693218,8.80038824,181.65,181.6,21.252]
[1761849693520,8.80038824,181.65,181.62,14.9357945]
[1761849694994,5.5048248,181.66,181.62,14.9357945]
[1761849695296,5.5048248,181.66,181.52,37.71753141]
[1761849695297,9.78882769,181.62,181.55,9.40383376]
[1761849695611,24.09703703,181.56,181.55,9.40383376]
[1761849695789,8.80038824,181.57,181.55,9.40383376]
[1761849695995,19.27261802,181.61,181.55,9.40383376]
[1761849696196,8.80038824,181.57,181.55,9.40383376]
[1761849696440,19.83261802,181.61,181.55,9.40383376]
[1761849696441,8.80038824,181.59,181.55,9.40383376]
[1761849696797,8.80038824,181.58,181.55,9.40383376]
[1761849697099,19.83261802,181.61,181.55,9.40383376]
[1761849697100,8.80038824,181.57,181.55,9.40383376]
[1761849697305,9.78882769,181.6,181.55,9.40383376]
[1761849697306,8.80038824,181.56,181.55,9.40383376]
[1761849697811,14.30820934,181.56,181.55,9.40383376]
[1761849698000,14.86820934,181.56,181.55,9.40383376]
[1761849698204,24.65703703,181.56,181.55,9.40383376]
[1761849700995,24.65703703,181.56,181.55,1e-08]
[1761849701425,10.34882769,181.55,181.54,1e-08]
[1761849701636,19.14921593,181.55,181.53,1e-08]
[1761849701929,24.65764382,181.54,181.53,1e-08]
[1761849702314,10.34882769,181.53,181.4,0.72]
[1761849702500,8.80038824,181.45,181.4,0.72]
[1761849702697,8.80038824,181.45,181.4,6.23265805]
[1761849702899,8.80038824,181.45,181.4,0.72]
[1761849703121,8.80038824,181.45,181.41,0.72]
[1761849703509,8.80038824,181.42,181.36,0.72]
[1761849703902,8.80038824,181.4,181.36,0.72]
[1761849704312,8.80038824,181.39,181.35,20.592]
[1761849704526,27.38960417,181.36,181.31,1e-08]
[1761849704835,27.38960417,181.36,181.05,118.75249007]
[1761849704836,9.78882769,181.28,181.17,0.72]
[1761849705045,4.51877552,181.29,181.18,0.72]
[1761849705230,8.80038824,181.19,181.18,20.592]
[1761849705538,8.80038824,181.26,181.18,0.72]
[1761849705835,5.74699358,181.34,181.2,19.31567328]
[1761849706039,14.54738182,181.34,181.28,20.592]
[1761849706241,8.80038824,181.33,181.21,0.72]
[1761849706536,8.80038824,181.31,181.24,20.592]
[1761849706707,8.80038824,181.27,181.22,0.72]
[1761849706909,0.46,181.33,181.22,0.72]
[1761849707142,0.46,181.33,181.16,18.29751071]
[1761849707143,8.80038824,181.25,181.16,23.29683604]
[1761849707343,9.78882769,181.3,181.16,15.01709061]
[1761849707543,8.80038824,181.26,181.19,8.80038824]
[1761849707713,8.80038824,181.27,181.21,8.80038824]
[1761849707913,8.80038824,181.28,181.18,5.51909497]
[1761849708237,9.78882769,181.27,181.19,0.72]
[1761849708427,18.58921593,181.27,181.2,8.80038824]
[1761849708628,8.80038824,181.29,181.22,8.80038824]
[1761849708832,24.10494437,181.3,181.2,20.592]
[1761849709022,8.80038824,181.29,181.22,8.80038824]
[1761849709337,15.30455613,181.3,181.22,8.80038824]
[1761849709523,18.58921593,181.27,181.21,0.72]
[1761849709721,8.80038824,181.25,181.2,20.592]
[1761849709920,8.80038824,181.25,181.21,20.592]
[1761849710137,18.58921593,181.27,181.21,20.592]
[1761849710313,24.10607108,181.27,181.21,20.592]
[1761849710515,8.80038824,181.26,181.21,20.592]
[1761849710926,8.80038824,181.26,181.2,8.80038824]
[1761849711436,0.46,181.33,181.25,8.80038824]
[1761849711645,9.26038824,181.33,181.26,8.80038824]
[1761849711832,9.78882769,181.32,181.27,8.80038824]
[1761849712040,5.97389501,181.36,181.26,6.23691766]
[1761849712223,8.80038824,181.34,181.26,0.72]
[1761849712424,9.78882769,181.32,181.26,8.80038824]
[1761849712626,8.80038824,181.3,181.21,21.312]
[1761849712830,8.80038824,181.3,181.24,8.80038824]
[1761849713036,8.80038824,181.31,181.24,8.80038824]
[1761849713544,10.24882769,181.32,181.21,26.11043639]
[1761849713545,9.78882769,181.32,181.21,26.11043639]
[1761849713719,19.75863254,181.36,181.28,8.80038824]
[1761849713921,5.51450314,181.34,181.29,8.80038824]
[1761849714117,14.77439605,181.36,181.3,8.80038824]
[1761849714345,9.26038824,181.37,181.31,8.80038824]
[1761849714557,9.26038824,181.37,181.24,0.72]
[1761849714558,8.80038824,181.32,181.24,0.72]
[1761849714742,8.80038824,181.3,181.24,8.80038824]
[1761849715051,8.80038824,181.29,181.23,8.80038824]
[1761849715220,0.46,181.35,181.2,9.52038824]
[1761849715221,8.80038824,181.27,181.2,9.52038824]
[1761849715428,8.80038824,181.26,181.2,9.52038824]
[1761849715755,9.78882769,181.25,181.2,0.72]
[1761849715932,9.78882769,181.31,181.21,0.72]
[1761849716119,9.78882769,181.31,181.24,29.39238824]
[1761849716322,9.78882769,181.24,181.16,9.49712247]
[1761849716522,9.78882769,181.18,181.16,9.49712247]
[1761849716776,0.46,181.24,181.16,9.49712247]
[1761849716929,8.80038824,181.2,181.16,9.49712247]
[1761849717130,8.80038824,181.21,181.16,9.49712247]
[1761849717452,0.46,181.22,181.16,9.49712247]
[1761849717658,18.58921593,181.17,181.16,9.49712247]
[1761849718158,24.10889358,181.17,181.16,9.49712247]
[1761849718451,38.3680877,181.17,181.11,0.042]
[1761849718635,8.80038824,181.13,181.11,0.042]
[1761849718832,9.78882769,181.12,181.11,0.042]
[1761849719033,0.46,181.16,181.11,0.042]
[1761849719233,9.78882769,181.16,181.11,0.042]
[1761849719529,5.51876379,181.2,181.12,9.52038824]
[1761849719738,18.58921593,181.2,181.12,0.72]
[1761849719938,5.97861481,181.21,181.13,5.52089659]
[1761849720145,5.97861481,181.21,181.13,6.24089659]
[1761849720146,9.78882769,181.2,181.13,6.24089659]
[1761849720361,0.46,181.25,181.17,8.80038824]
[1761849720565,18.58921593,181.24,181.17,9.52038824]
[1761849720767,18.58921593,181.24,181.18,8.80038824]
[1761849720768,8.80038824,181.24,181.18,8.80038824]
[1761849720942,0.72,181.25,181.18,8.80038824]
[1761849721142,0.72,181.3,181.24,8.80038824]
[1761849721354,15.03580382,181.31,181.2,20.592]
[1761849721543,13.78680346,181.34,181.27,8.80038824]
[1761849721544,2.88414179,181.29,181.27,8.80038824]
[1761849721763,8.80038824,181.35,181.28,8.80038824]
[1761849721955,5.51437122,181.35,181.28,8.80038824]
[1761849722134,2.88325108,181.33,181.3,8.80038824]
[1761849722338,2.88325108,181.33,181.31,8.80038824]
[1761849722557,13.78222909,181.4,181.31,8.80038824]
[1761849722752,13.78222909,181.4,181.33,8.80038824]
[1761849722753,2.8826953,181.36,181.33,8.80038824]
[1761849722948,8.80038824,181.38,181.31,0.72]
[1761849723461,2.88254432,181.37,181.35,8.80038824]
[1761849723765,13.77982146,181.43,181.36,8.80038824]
[1761849723766,5.51238351,181.41,181.36,8.80038824]
[1761849723963,2.88209256,181.4,181.36,8.80038824]
[1761849724153,2.88209256,181.4,181.36,9.52038824]
[1761849724562,2.88209256,181.4,181.37,0.72]
[1761849724761,2.88209256,181.4,181.38,8.80038824]
[1761849724970,2.88209256,181.4,181.37,9.52038824]
[1761849725149,0.72,181.47,181.39,8.80038824]
[1761849725347,8.80038824,181.45,181.39,8.80038824]
[1761849725647,9.78882769,181.46,181.4,8.80038824]
[1761849725846,8.80038824,181.46,181.4,9.52038824]
[1761849726058,0.92,181.5,181.42,8.80038824]
[1761849726059,2.88146582,181.45,181.42,8.80038824]
[1761849726450,2.88146582,181.45,181.43,0.72]
[1761849726862,0.2,181.5,181.44,9.52038824]
[1761849727273,0.2,181.5,181.45,9.52038824]
[1761849727575,8.80038824,181.49,181.46,0.72]
[1761849727883,0.2,181.5,181.46,0.72]
[1761849728044,0.2,181.5,181.47,5.5105527]
[1761849728444,0.2,181.5,181.48,0.72]
[1761849728670,0.2,181.5,181.48,9.52038824]
[1761849729170,0.2,181.5,181.49,0.66]
[1761849729766,0.2,181.5,181.49,9.46038824]
[1761849730089,13.76467906,181.63,181.49,9.46038824]
[1761849730090,8.80038824,181.63,181.56,20.592]
[1761849730244,8.80038824,181.63,181.57,8.80038824]
[1761849730578,8.80038824,181.64,181.57,9.46038824]
[1761849730755,11.67906358,181.65,181.58,9.46038824]
[1761849731069,8.80038824,181.66,181.59,8.80038824]
[1761849731271,8.80038824,181.67,181.6,9.46038824]
[1761849731449,2.87797867,181.69,181.62,8.80038824]
[1761849731647,11.67836691,181.69,181.63,8.80038824]
[1761849732071,8.80038824,181.68,181.64,0.66]
[1761849732368,8.80038824,181.67,181.61,8.80038824]
[1761849732745,8.80038824,181.69,181.62,9.46038824]
[1761849732943,2.87758833,181.71,181.64,8.80038824]
[1761849733144,8.80038824,181.71,181.64,8.80038824]
[1761849733370,8.80038824,181.72,181.66,8.80038824]
[1761849733669,2.87712455,181.75,181.68,20.592]
[1761849733873,8.80038824,181.81,181.74,8.80038824]
[1761849734053,8.80038824,181.81,181.75,8.80038824]
[1761849734252,8.37592683,181.82,181.77,8.80038824]
[1761849734253,2.87576364,181.82,181.77,8.80038824]
[1761849734455,0.2,181.9,181.76,21.252]
[1761849734655,8.80038824,181.83,181.77,8.80038824]
[1761849734959,8.80038824,181.82,181.76,0.66]
[1761849735167,8.80038824,181.82,181.76,9.46038824]
[1761849735360,8.80038824,181.82,181.77,0.71]
[1761849735555,8.80038824,181.84,181.78,8.80038824]
[1761849735765,8.80038824,181.83,181.77,9.51038824]
[1761849736354,8.80038824,181.82,181.77,0.71]
[1761849737167,8.80038824,181.79,181.75,20.592]
[1761849737355,0.7,181.81,181.69,0.71]
[1761849737558,19.24887325,181.83,181.73,20.592]
[1761849737887,29.73770094,181.83,181.73,8.80038824]
[1761849738051,8.80038824,181.79,181.73,0.71]
[1761849738251,8.80038824,181.79,181.73,9.51038824]
[1761849738475,14.30129868,181.79,181.73,9.51038824]
[1761849738864,8.80038824,181.8,181.74,0.71]
[1761849739081,8.80038824,181.79,181.74,0.71]
[1761849739328,8.80038824,181.77,181.71,0.71]
[1761849739455,8.80038824,181.75,181.68,0.71]
[1761849739775,8.80038824,181.74,181.68,9.51038824]
[1761849739985,0.7,181.79,181.69,9.51038824]
[1761849740169,8.80038824,181.75,181.69,9.51038824]
[1761849740489,14.3026018,181.75,181.69,9.51038824]
[1761849740779,8.80038824,181.71,181.64,0.71]
[1761849741081,8.80038824,181.71,181.68,20.592]
[1761849741250,8.80038824,181.72,181.66,8.80038824]
[1761849741460,8.80038824,181.72,181.67,20.592]
[1761849741672,8.80038824,181.72,181.67,21.302]
[1761849741973,19.25737174,181.75,181.68,0.71]
[1761849741974,8.80038824,181.73,181.68,0.71]
[1761849742176,8.80038824,181.72,181.68,0.71]
[1761849742560,14.30336935,181.72,181.68,0.71]
[1761849742770,8.80038824,181.72,181.68,0.71]
[1761849743172,8.80038824,181.72,181.65,29.39238824]
[1761849743173,8.80038824,181.7,181.65,29.39238824]
[1761849743365,8.80038824,181.7,181.67,20.592]
[1761849743748,8.80038824,181.69,181.65,20.592]
[1761849744451,14.30431578,181.69,181.65,20.592]
[1761849744677,5.50392754,181.69,181.65,20.592]
[1761849744988,8.80038824,181.68,181.63,0.71]
[1761849745659,8.80038824,181.66,181.63,0.71]
[1761849745867,8.80038824,181.65,181.62,20.592]
[1761849746175,8.80038824,181.65,181.63,20.592]
[1761849746358,8.80038824,181.66,181.63,20.592]
[1761849746677,8.80038824,181.67,181.61,35.60867922]
[1761849746888,8.80038824,181.66,181.61,26.09829098]
[1761849747095,8.80038824,181.67,181.62,0.71]
[1761849748371,5.5041936,181.68,181.62,0.71]
[1761849748570,8.80038824,181.67,181.62,0.71]
[1761849749187,8.80038824,181.66,181.62,0.71]
[1761849749583,8.80038824,181.65,181.63,0.152593]
[1761849749785,19.26465154,181.68,181.63,0.152593]
[1761849749786,8.80038824,181.64,181.63,0.152593]
[1761849750374,8.80038824,181.65,181.63,0.862593]
[1761849750795,8.80038824,181.67,181.63,0.862593]
[1761849751178,27.50591745,181.78,181.64,29.39238824]
[1761849751377,0.7,181.77,181.63,21.454593]
[1761849751580,5.78362091,181.72,181.67,20.592]
[1761849751793,5.78362091,181.71,181.67,20.592]
[1761849752178,5.78362091,181.71,181.67,21.302]
[1761849752376,5.78362091,181.72,181.67,21.302]
[1761849752779,5.78362091,181.68,181.64,20.592]
[1761849753023,5.78362091,181.66,181.63,0.152593]
[1761849753301,0.7,181.73,181.64,0.71]
[1761849753609,5.78362091,181.68,181.65,20.592]
[1761849753810,9.78882769,181.72,181.65,20.592]
[1761849753974,5.78362091,181.7,181.65,20.592]
[1761849754178,5.78362091,181.71,181.65,27.08562091]
[1761849754473,11.28639392,181.73,181.67,11.28810706]
[1761849754700,11.28639392,181.73,181.68,5.78362091]
[1761849754701,5.50277301,181.73,181.68,5.78362091]
[1761849755207,11.28601622,181.74,181.69,0.71]
[1761849755390,5.50239531,181.74,181.69,6.49362091]
[1761849755696,11.28570232,181.75,181.69,6.49362091]
[1761849756098,11.28541087,181.76,181.7,6.49362091]
[1761849756699,11.28541087,181.76,181.7,11.9971855]
[1761849757115,5.78362091,181.73,181.68,20.592]
[1761849757402,5.78362091,181.72,181.68,20.592]
[1761849757608,5.78362091,181.73,181.68,20.592]
[1761849757786,0.7,181.75,181.68,20.592]
[1761849758120,5.78362091,181.73,181.68,20.592]
[1761849758280,0.7,181.75,181.68,20.592]
[1761849758281,5.78362091,181.74,181.68,20.592]
[1761849758481,5.50266879,181.73,181.68,27.08562091]
[1761849758706,5.5024229,181.74,181.68,27.08562091]
[1761849758892,11.28507879,181.77,181.69,6.49362091]
[1761849759079,11.28507879,181.77,181.7,6.49362091]
[1761849759301,5.78362091,181.75,181.68,27.09562091]
[1761849759505,10.44882769,181.76,181.68,20.592]
[1761849759674,5.78362091,181.71,181.68,20.592]
[1761849759875,5.78362091,181.7,181.65,20.592]
[1761849760075,5.78362091,181.69,181.65,20.592]
[1761849760287,5.78362091,181.73,181.66,0.72]
[1761849760480,0.66,181.75,181.66,0.72]
[1761849760481,11.28678781,181.72,181.66,6.22474417]
[1761849760898,11.28678781,181.72,181.67,0.72]
[1761849761401,11.28678781,181.72,181.67,6.22433765]
[1761849761609,5.5031669,181.72,181.67,6.22433765]
[1761849761782,5.78362091,181.71,181.68,0.72]
[1761849762806,5.78362091,181.73,181.68,0.72]
[1761849763011,9.78882769,181.78,181.68,21.312]
[1761849763214,5.78362091,181.75,181.68,21.312]
[1761849763416,5.78362091,181.75,181.69,0.72]
[1761849763632,5.78362091,181.71,181.67,26.09642016]
[1761849763795,19.25298421,181.79,181.67,26.09642016]
[1761849763796,46.75724737,181.79,181.68,0.72]
[1761849764125,5.78362091,181.72,181.68,0.72]
[1761849764425,5.78362091,181.74,181.68,0.72]
[1761849765304,5.78362091,181.73,181.68,0.72]
[1761849765501,11.28630369,181.73,181.68,6.22408636]
[1761849766238,3.95633107,181.72,181.66,0.72]
[1761849766402,5.78362091,181.71,181.68,0.72]
[1761849767229,3.96622314,181.7,181.68,0.72]
[1761849767420,3.96622314,181.7,181.69,20.592]
[1761849767604,5.78362091,181.76,181.69,31.87950114]
[1761849767803,3.96696037,181.75,181.7,0.72]
[1761849768017,3.96696037,181.74,181.7,0.72]
[1761849768224,5.78362091,181.81,181.73,5.78362091]
[1761849768543,3.97386306,181.8,181.75,26.37562091]
[1761849768722,3.97386306,181.79,181.75,26.37562091]
[1761849768917,3.97386306,181.78,181.76,6.50362091]
[1761849769104,3.97386306,181.77,181.75,5.78362091]
[1761849769418,3.97386306,181.76,181.75,31.87768418]
[1761849769617,3.97386306,181.76,181.75,20.592]
[1761849771025,3.97386306,181.76,181.75,26.81406327]
[1761849772026,3.97386306,181.76,181.75,21.312]
[1761849772338,7.62063186,181.76,181.75,20.592]
[1761849772830,7.62063186,181.76,181.72,0.72]
[1761849773032,11.28511448,181.77,181.72,0.72]
[1761849773033,7.62063186,181.75,181.72,0.72]
[1761849773233,11.28511448,181.77,181.72,6.22286519]
[1761849773234,7.62564475,181.74,181.72,6.22286519]
[1761849773529,7.6261643,181.73,181.72,6.22286519]
[1761849774216,7.6261643,181.73,181.68,6.50362091]
[1761849774410,7.6261643,181.72,181.69,5.50378781]
[1761849774617,7.6261643,181.71,181.69,6.22378781]
[1761849774816,3.97386306,181.7,181.69,6.22378781]
[1761849775127,3.97386306,181.7,181.69,5.50378781]
[1761849775626,3.97386306,181.7,181.63,0.152593]
[1761849775838,7.63224892,181.69,181.67,0.72]
[1761849776006,7.63224892,181.68,181.67,20.592]
[1761849776203,7.63224892,181.68,181.65,0.72]
[1761849776432,3.97386306,181.67,181.65,0.72]
[1761849776637,5.78362091,181.7,181.67,20.592]
[1761849776831,7.66297003,181.69,181.67,20.592]
[1761849777033,7.66297003,181.68,181.67,20.592]
[1761849777335,4.01107767,181.68,181.67,20.592]
[1761849777636,4.01107767,181.68,181.67,21.312]
[1761849779518,4.01107767,181.68,181.67,26.81648615]
[1761849779727,4.01107767,181.68,181.67,32.60010706]
[1761849780239,5.78362091,181.73,181.67,26.81648615]
[1761849780439,3.64781761,181.72,181.67,26.81648615]
[1761849780630,5.78362091,181.71,181.67,26.09648615]
[1761849780941,9.43143852,181.7,181.67,26.0964057]
[1761849781111,5.78362091,181.7,181.67,26.0964057]
[1761849782033,5.78362091,181.68,181.63,0.152593]
[1761849782237,5.78362091,181.64,181.63,0.152593]
[1761849782449,5.78362091,181.65,181.63,0.152593]
[1761849783028,5.78362091,181.64,181.63,0.152593]
[1761849783240,5.78362091,181.65,181.63,0.152593]
[1761849784839,5.78362091,181.64,181.63,20.744593]
[1761849785315,6.44362091,181.64,181.63,0.152593]
[1761849785651,10.10193966,181.64,181.52,0.72]
[1761849785821,9.78882769,181.65,181.53,5.50871933]
[1761849785822,5.78362091,181.56,181.53,5.50871933]
[1761849786016,5.78362091,181.6,181.54,26.37562091]
[1761849786241,5.78362091,181.59,181.54,20.592]
[1761849786427,5.78362091,181.58,181.54,20.592]
[1761849786747,5.78362091,181.58,181.54,21.312]
[1761849786964,5.78362091,181.56,181.54,20.592]
[1761849787127,5.78362091,181.56,181.52,5.50897675]
[1761849787330,5.78362091,181.56,181.52,6.22897675]
[1761849789162,5.78362091,181.54,181.49,13.77460984]
[1761849789335,0.66,181.55,181.49,34.36660984]
[1761849789537,5.78362091,181.53,181.49,34.36660984]
[1761849789949,5.78362091,181.53,181.5,0.71]
[1761849790361,5.78362091,181.55,181.5,19.99372132]
[1761849790662,4.38057829,181.67,181.55,20.592]
[1761849790866,9.84617036,181.66,181.58,5.78362091]
[1761849791033,6.49362091,181.66,181.6,5.78362091]
[1761849791237,5.78362091,181.67,181.61,5.78362091]
[1761849791437,5.78362091,181.68,181.62,5.78362091]
[1761849791657,5.78362091,181.67,181.61,26.37562091]
[1761849791976,5.78362091,181.65,181.61,20.592]
[1761849792192,5.78362091,181.65,181.59,5.78362091]
[1761849792388,0.71,181.67,181.6,5.50660792]
[1761849792686,5.78362091,181.63,181.56,20.592]
[1761849792887,5.78362091,181.62,181.57,6.49362091]
[1761849793088,5.78362091,181.64,181.58,6.49362091]
[1761849793457,6.49362091,181.65,181.59,26.37562091]
[1761849793663,5.78362091,181.66,181.6,5.78362091]
[1761849793884,5.78362091,181.64,181.59,27.08562091]
[1761849794054,5.78362091,181.65,181.59,27.08562091]
[1761849794450,5.78362091,181.63,181.57,20.592]
[1761849794678,6.49362091,181.65,181.59,5.78362091]
[1761849794960,6.49362091,181.65,181.58,12.00078436]
[1761849794961,5.78362091,181.64,181.58,12.00078436]
[1761849795155,0.71,181.64,181.58,5.50716345]
[1761849795463,31.89935145,181.7,181.63,5.78362091]
[1761849795464,5.78362091,181.7,181.63,5.78362091]
[1761849795657,4.00316924,181.69,181.65,5.78362091]
[1761849796361,0.7,181.7,181.65,11.28861161]
[1761849796689,15.99112481,181.7,181.64,11.28900028]
[1761849796868,4.00380938,181.69,181.64,11.28900028]
[1761849797183,5.78362091,181.71,181.66,5.78362091]
[1761849797681,0.7,181.71,181.66,5.78362091]
[1761849797867,0.7,181.7,181.66,5.78362091]
[1761849798385,5.78362091,181.72,181.67,0.66]
[1761849798681,4.00506851,181.71,181.67,6.16422895]
[1761849799476,15.99197089,181.71,181.66,5.78362091]
[1761849799681,0.7,181.7,181.66,5.78362091]
[1761849799981,5.78362091,181.69,181.65,20.592]
[1761849800158,5.78362091,181.71,181.66,0.66]
[1761849800353,5.78362091,181.71,181.66,6.44362091]
[1761849800563,6.48362091,181.71,181.66,11.94828872]
[1761849800764,5.78362091,181.71,181.66,11.28828872]
[1761849800976,9.36070942,181.74,181.68,5.78362091]
[1761849801155,4.00554471,181.73,181.69,5.78362091]
[1761849801495,5.78362091,181.76,181.7,5.78362091]
[1761849801658,4.00604671,181.75,181.7,5.78362091]
[1761849801857,4.00604671,181.75,181.71,27.03562091]
[1761849802182,9.07775914,181.78,181.72,5.78362091]
[1761849802478,4.00653354,181.77,181.72,5.78362091]
[1761849802682,4.00653298,181.76,181.72,11.28634395]
[1761849802894,14.86138005,181.78,181.72,11.28634395]
[1761849803206,4.00663214,181.77,181.72,11.28634395]
[1761849803378,4.00663214,181.77,181.72,5.78362091]
[1761849803560,4.70663214,181.77,181.72,11.28651972]
[1761849803761,4.70663214,181.77,181.72,11.94651972]
[1761849803981,4.70663214,181.77,181.72,6.44362091]
[1761849804559,4.00663214,181.77,181.72,5.78362091]
[1761849804757,10.20814275,181.77,181.72,11.28657562]
[1761849804961,4.00663214,181.76,181.72,11.94657562]
[1761849805177,11.28479957,181.78,181.73,6.44362091]
[1761849805488,4.00639038,181.77,181.73,5.78362091]
[1761849805672,4.70639038,181.77,181.73,5.78362091]
[1761849806266,4.70639038,181.77,181.73,11.28607375]
[1761849806795,4.00639038,181.77,181.74,0.66]
[1761849806998,11.2845301,181.79,181.74,0.66]
[1761849807199,4.00648748,181.78,181.74,0.66]
[1761849807405,4.70648748,181.78,181.73,11.28607375]
[1761849807591,4.70648748,181.78,181.73,11.94607375]
[1761849807786,4.00648748,181.78,181.74,6.16207627]
[1761849808097,0.7,181.77,181.72,26.37562091]
[1761849808297,6.48362091,181.77,181.72,20.592]
[1761849808705,5.78362091,181.73,181.67,0.66]
[1761849809003,5.78362091,181.71,181.66,5.78362091]
[1761849809205,5.78362091,181.71,181.65,6.44362091]
[1761849809402,5.78362091,181.71,181.68,20.592]
[1761849809607,5.78362091,181.69,181.63,25.71356529]
[1761849809807,5.78362091,181.69,181.64,5.78362091]
[1761849809996,5.78362091,181.69,181.68,20.592]
[1761849810504,5.78362091,181.69,181.67,20.592]
[1761849810707,6.48362091,181.69,181.67,20.592]
[1761849811292,6.48362091,181.69,181.64,20.592]
[1761849811293,14.99593782,181.69,181.64,20.592]
[1761849811492,8.79202977,181.67,181.65,20.592]
[1761849811786,8.79202977,181.68,181.65,20.592]
[1761849812110,8.79202977,181.67,181.65,20.592]
[1761849813009,9.49202977,181.66,181.61,5.50605046]
[1761849813189,8.79202977,181.65,181.61,5.50605046]
[1761849813509,8.79202977,181.65,181.64,20.592]
[1761849814007,8.79202977,181.65,181.6,5.50660792]
[1761849814310,8.79202977,181.66,181.63,20.592]
[1761849815478,8.79202977,181.67,181.64,20.592]
[1761849816106,8.79202977,181.66,181.64,20.592]
[1761849816316,8.79202977,181.65,181.64,20.592]
[1761849816903,8.79202977,181.65,181.62,26.0979817]
[1761849817593,8.79202977,181.65,181.62,26.7579817]
[1761849817796,8.79202977,181.66,181.62,26.7579817]
[1761849818607,8.79202977,181.66,181.62,26.0979817]
[1761849818903,9.49202977,181.66,181.62,26.0979817]
[1761849819299,8.79202977,181.66,181.62,26.0979817]
[1761849819514,8.79202977,181.66,181.63,0.67]
[1761849819815,8.79202977,181.64,181.57,0.67]